bitfinex-derivatives/quotes_BTCF0:USTF0_20251023
["timestamp","ask_amount","ask_price","bid_price","bid_amount"]
[1761222525254,0.26791092,109210.0,109200.0,0.0588]
[1761222525664,0.26791092,109210.0,109200.0,0.1503597]
[1761222525861,0.26791092,109210.0,109200.0,0.0588]
[1761222526168,0.87452353,109210.0,109200.0,0.001]
[1761222527366,0.82523876,109210.0,109200.0,0.02399]
[1761222528067,0.82523876,109210.0,109200.0,0.0588]
[1761222528968,0.84983572,109210.0,109200.0,0.0588]
[1761222533065,0.70038844,109210.0,109200.0,0.0588]
[1761222533369,0.84983572,109210.0,109200.0,0.0588]
[1761222534359,0.42523876,109210.0,109200.0,0.0588]
[1761222534564,0.42523876,109210.0,109200.0,0.001]
[1761222534870,0.42523876,109210.0,109200.0,0.02295]
[1761222535071,0.42523876,109210.0,109200.0,0.04527]
[1761222536175,0.47452353,109210.0,109200.0,0.04527]
[1761222536472,0.47452353,109210.0,109200.0,0.05855]
[1761222536973,0.44983921,109210.0,109200.0,0.05855]
[1761222537173,0.30072051,109210.0,109200.0,0.05855]
[1761222537873,0.27612006,109210.0,109200.0,0.05855]
[1761222538874,0.22612006,109210.0,109200.0,0.05855]
[1761222542469,0.24256935,109210.0,109200.0,0.05855]
[1761222544181,0.19328458,109210.0,109200.0,0.05855]
[1761222546578,0.24264597,109210.0,109200.0,0.05855]
[1761222547271,0.24264597,109210.0,109200.0,0.07203327]
[1761222548174,0.19328458,109210.0,109200.0,0.07203327]
[1761222549376,0.24266341,109210.0,109200.0,0.16359297]
[1761222549680,0.41661613,109210.0,109200.0,0.16359297]
[1761222549883,0.44953651,109210.0,109200.0,0.16359297]
[1761222550078,0.59898379,109210.0,109200.0,0.16359297]
[1761222550272,0.44953651,109210.0,109200.0,0.16359297]
[1761222550576,0.44839651,109210.0,109200.0,0.16359297]
[1761222550981,0.44953651,109210.0,109200.0,0.16359297]
[1761222551482,0.59898379,109210.0,109200.0,0.16359297]
[1761222552178,0.59898379,109210.0,109200.0,0.07203327]
[1761222552783,0.56606341,109210.0,109200.0,0.07203327]
[1761222553379,0.59606341,109210.0,109200.0,0.07203327]
[1761222554383,0.54668458,109210.0,109200.0,0.07203327]
[1761222556680,0.54677608,109210.0,109200.0,0.07203327]
[1761222559381,0.61256457,109210.0,109200.0,0.07203327]
[1761222560887,0.76210335,109210.0,109200.0,0.07203327]
[1761222561989,0.61256457,109210.0,109200.0,0.07203327]
[1761222562581,0.61256457,109210.0,109200.0,0.16359297]
[1761222562582,0.58256457,109210.0,109200.0,0.16359297]
[1761222564192,0.58256457,109210.0,109200.0,0.16359514]
[1761222564385,0.58256457,109210.0,109200.0,0.07203544]
[1761222566184,0.58256457,109210.0,109200.0,0.16359514]
[1761222566696,0.5661514,109210.0,109200.0,0.31313392]
[1761222566882,0.5661514,109210.0,109200.0,0.07176544]
[1761222567084,0.51677608,109210.0,109200.0,0.16332514]
[1761222567280,0.5661493,109210.0,109200.0,0.16332514]
[1761222569392,0.59906312,109210.0,109200.0,0.16332514]
[1761222569585,0.59906312,109210.0,109200.0,0.07176544]
[1761222569786,0.5661493,109210.0,109200.0,0.16311514]
[1761222570190,0.59906329,109210.0,109200.0,0.16311514]
[1761222570790,0.64905729,109210.0,109200.0,0.31265392]
[1761222572297,0.64905729,109210.0,109200.0,0.16311514]
[1761222575996,0.64905729,109210.0,109200.0,0.31265392]
[1761222576293,0.53281793,109210.0,109200.0,0.34626494]
[1761222576596,0.02468516,109210.0,109200.0,0.89580372]
[1761222576797,0.02582516,109210.0,109200.0,0.89580372]
[1761222576998,0.02582516,109210.0,109200.0,0.74626494]
[1761222577194,0.02582516,109210.0,109200.0,0.89580372]
[1761222577495,0.11737646,109210.0,109200.0,0.74626494]
[1761222577798,0.26805524,109210.0,109200.0,0.74626494]
[1761222577999,0.11851646,109210.0,109200.0,0.74626494]
[1761222578593,0.11851646,109210.0,109200.0,1.06950494]
[1761222580000,0.02696516,109210.0,109200.0,1.06950494]
[1761222580199,0.02582516,109210.0,109200.0,1.06950494]
[1761222580600,0.11737646,109210.0,109200.0,1.06950494]
[1761222581401,0.02468516,109210.0,109200.0,1.21904372]
[1761222581899,0.11623646,109210.0,109200.0,1.21904372]
[1761222582102,0.11623646,109210.0,109200.0,1.06950494]
[1761222582294,0.11623646,109210.0,109200.0,1.21904372]
[1761222583003,0.11623646,109210.0,109200.0,1.06950494]
[1761222583499,0.11623646,109210.0,109200.0,1.04487422]
[1761222583705,0.11737646,109210.0,109200.0,1.04487422]
[1761222585607,0.26691524,109210.0,109200.0,1.04487422]
[1761222586008,0.02582516,109210.0,109200.0,1.194413]
[1761222586199,0.02468516,109210.0,109200.0,1.194413]
[1761222587508,0.11623646,109210.0,109200.0,1.194413]
[1761222588306,0.26805524,109210.0,109200.0,1.04487422]
[1761222588501,0.26805524,109210.0,109200.0,0.88635514]
[1761222588703,0.30096923,109210.0,109200.0,0.56311514]
[1761222589404,0.26805524,109210.0,109200.0,0.56311514]
[1761222590109,0.30096923,109210.0,109200.0,0.56311514]
[1761222590410,0.30096923,109210.0,109200.0,0.71265392]
[1761222592914,0.15143045,109210.0,109200.0,0.71265392]
[1761222593116,0.30096923,109210.0,109200.0,0.71265392]
[1761222594218,0.15143045,109210.0,109200.0,0.71265392]
[1761222594718,0.30095204,109210.0,109200.0,0.71265392]
[1761222596018,0.30095204,109210.0,109200.0,0.16311514]
[1761222596717,0.62411204,109210.0,109200.0,0.16311514]
[1761222597222,0.62411204,109210.0,109200.0,0.31265392]
[1761222598521,0.62411204,109210.0,109200.0,0.16311514]
[1761222599523,0.59944407,109210.0,109200.0,0.07155544]
[1761222600420,0.6459033,109210.0,109200.0,0.01448544]
[1761222600720,0.79544208,109210.0,109200.0,0.01448544]
[1761222600921,0.6459033,109210.0,109200.0,0.03779544]
[1761222601319,0.6459033,109210.0,109200.0,0.01448544]
[1761222603721,1.19544208,109210.0,109200.0,0.01448544]
[1761222604220,1.21185735,109210.0,109200.0,0.01448544]
[1761222604422,1.14606886,109210.0,109200.0,0.01448544]
[1761222604723,1.21185735,109210.0,109200.0,0.01448544]
[1761222604923,1.21185735,109210.0,109200.0,0.001]
[1761222605118,0.0938481,109190.0,109180.0,0.00457938]
[1761222605323,0.62586143,109190.0,109180.0,0.06299938]
[1761222605623,0.46632265,109190.0,109180.0,0.06299938]
[1761222605814,0.61586143,109190.0,109180.0,0.06299938]
[1761222606531,0.61586143,109190.0,109180.0,0.06599938]
[1761222607028,0.61586143,109190.0,109180.0,0.06399938]
[1761222607222,0.64971596,109190.0,109180.0,0.06299938]
[1761222607524,0.64971596,109190.0,109180.0,0.15457588]
[1761222608027,0.64971596,109190.0,109180.0,0.06299938]
[1761222608422,0.60036141,109190.0,109180.0,0.06299938]
[1761222608728,0.60036141,109190.0,109180.0,0.15457588]
[1761222608933,0.60036141,109190.0,109180.0,0.06299938]
[1761222609225,0.62498818,109190.0,109180.0,0.06299938]
[1761222609429,0.59213365,109190.0,109180.0,0.06299938]
[1761222609628,0.59213365,109190.0,109180.0,0.15457588]
[1761222610027,0.62498818,109190.0,109180.0,0.15457588]
[1761222610326,0.68971596,109190.0,109180.0,0.06299938]
[1761222611427,0.68971596,109190.0,109180.0,0.00457938]
[1761222612424,0.69865776,109190.0,109180.0,0.00457938]
[1761222612822,0.69865776,109190.0,109180.0,0.02788938]
[1761222613430,0.69865776,109190.0,109180.0,0.06299938]
[1761222614330,0.64930321,109190.0,109180.0,0.06299938]
[1761222615234,0.79884199,109190.0,109180.0,0.06299938]
[1761222615432,0.84819654,109190.0,109180.0,0.04948938]
[1761222615633,0.69865776,109190.0,109180.0,0.04948938]
[1761222615827,0.84819654,109190.0,109180.0,0.00457938]
[1761222616425,0.79884199,109190.0,109180.0,0.00457938]
[1761222617524,0.64930321,109190.0,109180.0,0.00457938]
[1761222618728,0.64936574,109190.0,109180.0,0.00457938]
[1761222620229,0.64936574,109190.0,109180.0,0.02788938]
[1761222620535,0.64936574,109190.0,109180.0,0.04948938]
[1761222620731,0.84936574,109190.0,109180.0,0.04948938]
[1761222621327,0.89872029,109190.0,109180.0,0.04948938]
[1761222621941,0.74911898,109190.0,109180.0,0.06299938]
[1761222622128,0.89872029,109190.0,109180.0,0.06299938]
[1761222622432,0.89872029,109190.0,109180.0,0.00457938]
[1761222623628,0.89872029,109190.0,109180.0,0.02788938]
[1761222625036,0.89872029,109190.0,109180.0,0.00457938]
[1761222625435,0.89872029,109190.0,109180.0,0.06202938]
[1761222627535,0.89872029,109190.0,109180.0,0.00457938]
[1761222627738,0.89872029,109190.0,109180.0,0.02653938]
[1761222627936,0.89872029,109190.0,109180.0,0.04889938]
[1761222628138,0.74911898,109190.0,109180.0,0.06202938]
[1761222628438,0.89872029,109190.0,109180.0,0.06202938]
[1761222628940,0.35560029,109190.0,109180.0,0.06202938]
[1761222629241,0.67872029,109190.0,109180.0,0.06202938]
[1761222630831,0.54626445,109190.0,109180.0,0.00457938]
[1761222631045,0.74586576,109190.0,109180.0,0.00457938]
[1761222631227,1.11191859,109190.0,109180.0,0.00324877]
[1761222631532,0.0938649,109170.0,109160.0,0.00011652]
[1761222631729,0.813676,109170.0,109160.0,0.00011652]
[1761222631925,0.83831392,109170.0,109160.0,0.00011652]
[1761222632334,0.5391113,109170.0,109160.0,0.00011652]
[1761222632534,0.83831392,109170.0,109160.0,0.00011652]
[1761222633336,0.90981411,109170.0,109160.0,0.00011652]
[1761222633727,0.82768771,109170.0,109160.0,0.00011652]
[1761222633942,0.6780864,109170.0,109160.0,0.05756652]
[1761222635536,0.6780864,109170.0,109160.0,0.02207652]
[1761222636540,0.82768771,109170.0,109160.0,0.00011652]
[1761222638141,0.87768771,109170.0,109160.0,0.00011652]
[1761222638343,0.0938817,109150.0,109140.0,0.06203106]
[1761222638547,0.56664301,109150.0,109140.0,0.06203106]
[1761222638746,0.63664301,109150.0,109140.0,0.06203106]
[1761222639445,0.63675786,109150.0,109140.0,0.06203106]
[1761222640040,0.63775786,109150.0,109140.0,0.06303106]
[1761222640744,0.63775786,109150.0,109140.0,0.06203106]
[1761222642248,0.63775786,109150.0,109140.0,0.00458106]
[1761222642937,0.63775786,109150.0,109140.0,0.06203106]
[1761222645443,0.16499655,109150.0,109140.0,0.30324247]
[1761222645644,0.00111485,109150.0,109140.0,0.30324247]
[1761222645842,0.32427485,109150.0,109140.0,0.30324247]
[1761222646056,0.00225485,109150.0,109140.0,0.15364116]
[1761222646442,0.32655485,109150.0,109140.0,0.15364116]
[1761222647945,0.32555485,109150.0,109140.0,0.15364116]
[1761222648253,0.56675786,109150.0,109140.0,0.06203106]
[1761222648653,0.56775786,109150.0,109140.0,0.06203106]
[1761222652654,0.41815655,109150.0,109140.0,0.06203106]
[1761222653157,0.56775786,109150.0,109140.0,0.06203106]
[1761222654855,0.56775786,109150.0,109140.0,0.03967106]
[1761222655249,0.58775786,109150.0,109140.0,0.03967106]
[1761222656057,0.58775786,109150.0,109140.0,0.06152106]
[1761222660464,0.58775786,109150.0,109120.0,0.01313]
[1761222660465,0.71735917,109150.0,109120.0,0.01313]
[1761222660760,0.15188131,109130.0,109120.0,0.05794]
[1761222660965,0.47514965,109130.0,109120.0,0.05794]
[1761222661360,0.53514965,109130.0,109100.0,0.06277274]
[1761222661660,0.15188131,109110.0,109100.0,0.06277274]
[1761222661856,0.47507167,109110.0,109100.0,0.06277274]
[1761222662948,0.47507167,109110.0,109100.0,0.06477274]
[1761222663356,0.47507167,109110.0,109100.0,0.15641644]
[1761222663653,0.32547036,109110.0,109100.0,0.15741644]
[1761222663953,0.32547036,109110.0,109100.0,0.06577274]
[1761222664154,0.47507167,109110.0,109100.0,0.06577274]
[1761222665258,0.62467298,109110.0,109100.0,0.06577274]
[1761222665964,0.62467298,109110.0,109100.0,0.04392274]
[1761222666362,0.62467298,109110.0,109100.0,0.00758274]
[1761222666862,0.62467298,109110.0,109100.0,0.03054274]
[1761222667061,0.62467298,109110.0,109100.0,0.04392274]
[1761222668162,0.71630828,109110.0,109100.0,0.02096274]
[1761222668358,0.82630828,109110.0,109100.0,0.00758274]
[1761222670665,0.82630828,109110.0,109100.0,0.03054274]
[1761222671057,0.82630828,109110.0,109100.0,0.06577274]
[1761222671058,0.35358697,109110.0,109100.0,0.06577274]
[1761222671257,0.56678697,109110.0,109100.0,0.06577274]
[1761222671963,0.24358697,109110.0,109100.0,0.06577274]
[1761222672163,0.41718566,109110.0,109100.0,0.06577274]
[1761222672369,0.32327036,109110.0,109100.0,0.30701775]
[1761222673062,7.036e-05,109110.0,109100.0,0.30701775]
[1761222674359,0.09170566,109110.0,109100.0,0.30701775]
[1761222674558,7.036e-05,109110.0,109100.0,0.30701775]
[1761222674758,7.036e-05,109110.0,109100.0,0.15741644]
[1761222675358,7.036e-05,109110.0,109100.0,0.2066756]
[1761222675967,0.09170566,109110.0,109100.0,0.2066756]
[1761222676157,0.09284566,109110.0,109100.0,0.2066756]
[1761222676358,0.09398566,109110.0,109100.0,0.2066756]
[1761222677163,0.09398566,109110.0,109100.0,0.14787751]
[1761222677366,0.09398566,109110.0,109100.0,0.0650667]
[1761222677367,0.44772175,109110.0,109100.0,0.0650667]
[1761222678758,0.32127151,109110.0,109100.0,0.0650667]
[1761222678969,0.37860966,109110.0,109100.0,0.00758274]
[1761222679666,0.19132381,109110.0,109100.0,0.00758274]
[1761222679861,0.37860966,109110.0,109100.0,0.00758274]
[1761222683167,0.345845,109110.0,109100.0,0.00758274]
[1761222683583,0.345845,109110.0,109100.0,0.03054274]
[1761222684270,0.345845,109110.0,109100.0,0.00758274]
[1761222684771,0.345845,109110.0,109100.0,0.04340274]
[1761222685566,0.345845,109110.0,109100.0,0.06574274]
[1761222687158,0.43947915,109110.0,109100.0,0.25302859]
[1761222687359,0.60447151,109110.0,109100.0,0.06574274]
[1761222687772,0.629045,109110.0,109100.0,0.06574274]
[1761222696481,1.16180966,109110.0,109080.0,8.853e-05]
[1761222696781,0.0916857,109050.0,109040.0,0.05782]
[1761222696980,0.60253155,109050.0,109040.0,0.07178515]
[1761222697176,0.43978158,109050.0,109040.0,0.07178515]
[1761222697372,0.62706743,109050.0,109040.0,0.07178515]
[1761222697679,0.62706743,109050.0,109040.0,0.05782]
[1761222697979,0.63633225,109050.0,109040.0,0.05782]
[1761222698177,0.61179637,109050.0,109040.0,0.05982]
[1761222698384,0.6026283,109050.0,109040.0,0.05982]
[1761222699374,0.62716418,109050.0,109040.0,0.05982]
[1761222699569,0.62716418,109050.0,109040.0,0.06082]
[1761222700377,0.63640264,109050.0,109040.0,0.06082]
[1761222703477,0.63640264,109050.0,109040.0,0.0161]
[1761222703680,0.63640264,109050.0,109040.0,0.003]
[1761222703681,0.67911715,109050.0,109040.0,0.003]
[1761222703881,0.70365304,109050.0,109040.0,0.003]
[1761222704780,0.0917025,109030.0,109020.0,0.0624061]
[1761222704979,0.60264957,109030.0,109020.0,0.0624061]
[1761222705777,0.6270873,109030.0,109020.0,0.0045861]
[1761222706093,0.6270873,109030.0,109000.0,0.0131]
[1761222706094,0.0917193,109010.0,109000.0,0.0131]
[1761222706283,0.0917277,109000.0,108990.0,0.05782]
[1761222706486,0.27901355,109000.0,108990.0,0.05782]
[1761222706683,0.60285486,109010.0,108990.0,0.05782]
[1761222706883,0.60285486,109010.0,108990.0,0.1048361]
[1761222707080,0.0917352,109000.0,108990.0,0.05782]
[1761222707585,0.27902105,109000.0,108990.0,0.05882]
[1761222707775,0.27902105,109000.0,108990.0,0.06182]
[1761222708586,0.32902105,109000.0,108990.0,0.03929]
[1761222708987,0.32911792,109000.0,108990.0,0.03829]
[1761222709189,0.32911792,109000.0,108990.0,0.03929]
[1761222709492,0.32911792,109000.0,108990.0,0.0151]
[1761222709884,0.32911792,109000.0,108990.0,0.0131]
[1761222710085,0.33011792,109000.0,108990.0,0.0131]
[1761222710392,0.09283207,109000.0,108990.0,0.05782]
[1761222710582,0.41679207,109000.0,108990.0,0.05782]
[1761222712992,0.60407792,109000.0,108990.0,0.05782]
[1761222713191,0.28011792,109000.0,108990.0,0.05782]
[1761222713386,0.41683207,109000.0,108990.0,0.05782]
[1761222713894,0.60411792,109000.0,108990.0,0.05782]
[1761222714987,0.32509687,109000.0,108990.0,0.1495561]
[1761222715188,0.32509687,109000.0,108990.0,0.5495561]
[1761222715994,0.41682457,109000.0,108990.0,0.45782]
[1761222717288,0.41682457,109000.0,108990.0,0.5495561]
[1761222718398,0.0917361,108990.0,108940.0,0.04074947]
[1761222718585,0.0917863,108940.0,108920.0,0.01287]
[1761222718793,0.0917867,108930.0,108920.0,0.05869]
[1761222719990,0.27907255,108930.0,108920.0,0.05869]
[1761222720293,0.27914085,108930.0,108920.0,0.05869]
[1761222720694,0.091855,108930.0,108920.0,0.06069]
[1761222720885,6.83e-05,108930.0,108920.0,0.5524851]
[1761222721289,0.091855,108930.0,108920.0,0.46169]
[1761222721998,0.091855,108930.0,108920.0,0.46069]
[1761222723689,0.091855,108930.0,108920.0,0.45869]
[1761222724398,0.092855,108930.0,108920.0,0.45869]
[1761222725186,0.092855,108930.0,108920.0,0.5504851]
[1761222726093,0.092855,108930.0,108920.0,0.45869]
[1761222726894,0.091855,108930.0,108920.0,0.45869]
[1761222727101,0.092855,108930.0,108920.0,0.45869]
[1761222727296,0.092855,108930.0,108920.0,0.5504851]
[1761222727691,0.0010683,108930.0,108920.0,0.5504851]
[1761222728001,0.092855,108930.0,108920.0,0.5504851]
[1761222728192,0.091855,108930.0,108920.0,0.5504851]
[1761222728490,0.092855,108930.0,108920.0,0.5504851]
[1761222729696,0.092855,108930.0,108920.0,0.1504851]
[1761222730096,0.091855,108930.0,108920.0,0.1504851]
[1761222730698,0.091855,108930.0,108920.0,0.05869]
[1761222731602,0.27914085,108930.0,108920.0,0.05869]
[1761222731801,0.0917951,108920.0,108910.0,0.01287]
[1761222732006,0.27908095,108920.0,108910.0,0.05869]
[1761222732805,0.0918035,108910.0,108900.0,0.06328116]
[1761222733105,0.27916791,108910.0,108900.0,0.06328116]
[1761222733492,0.67916791,108910.0,108900.0,0.02788116]
[1761222733795,0.1086704,108890.0,108880.0,0.1505134]
[1761222734000,0.03380501,108890.0,108880.0,0.1505188]
[1761222734193,0.00010501,108890.0,108880.0,0.1505188]
[1761222735091,0.00010501,108890.0,108880.0,0.1525188]
[1761222735690,0.00010501,108890.0,108880.0,0.16259642]
[1761222735900,0.00010501,108890.0,108880.0,0.56259642]
[1761222736106,0.00010501,108890.0,108880.0,0.74988227]
[1761222737502,0.091799,108920.0,108910.0,0.1046732]
[1761222737503,0.0917989,108920.0,108910.0,0.1046732]
[1761222737697,0.0917989,108920.0,108910.0,0.1504932]
[1761222737898,0.4511326,108930.0,108920.0,0.1504851]
[1761222738208,0.0917837,108940.0,108930.0,0.1504767]
[1761222738502,0.09185257,108940.0,108930.0,0.1504767]
[1761222738706,0.09185257,108940.0,108930.0,1.06364255]
[1761222738707,6.887e-05,108940.0,108930.0,1.06364255]
[1761222738900,1e-08,108940.0,108930.0,1.06364255]
[1761222739204,1e-08,108940.0,108930.0,0.8763567]
[1761222739599,0.00100001,108940.0,108930.0,0.8763567]
[1761222740002,0.00100001,108940.0,108930.0,0.5504767]
[1761222740197,0.00100001,108940.0,108930.0,0.8763567]
[1761222740403,0.00100001,108940.0,108930.0,1.07300989]
[1761222740908,0.00100001,108940.0,108930.0,0.88572404]
[1761222741099,1e-08,108940.0,108930.0,0.88572404]
[1761222741810,1e-08,108940.0,108930.0,0.46319404]
[1761222741999,0.02165,108950.0,108930.0,0.46319404]
[1761222742000,0.0048,108950.0,108940.0,0.1143083]
[1761222742206,0.0048,108950.0,108940.0,0.85227603]
[1761222742403,0.00337215,108950.0,108940.0,0.85227603]
[1761222742605,0.05812515,108980.0,108970.0,0.137573]
[1761222742800,0.49285977,108990.0,108980.0,0.1478746]
[1761222742801,0.06292515,108990.0,108980.0,0.1478746]
[1761222743104,0.0048,108990.0,108980.0,0.1478746]
[1761222743310,0.09664332,108990.0,108980.0,0.1478746]
[1761222743901,0.09664332,108990.0,108980.0,0.05613]
[1761222744102,0.11349332,108990.0,108980.0,0.05613]
[1761222744305,0.1254446,108980.0,108970.0,0.04264]
[1761222744507,0.44012233,108980.0,108970.0,0.02162]
[1761222744705,0.44012233,108980.0,108960.0,0.4740037]
[1761222745207,0.125453,108970.0,108960.0,0.4740037]
[1761222745409,0.125453,108970.0,108960.0,0.05613]
[1761222745715,0.12551875,108970.0,108960.0,0.05613]
[1761222746104,0.12551875,108970.0,108960.0,0.1478914]
[1761222746901,0.03376575,108970.0,108960.0,0.1478914]
[1761222747097,0.12551875,108970.0,108960.0,0.1478914]
[1761222747303,0.01691575,108970.0,108960.0,0.1478914]
[1761222747509,6.575e-05,108970.0,108960.0,0.1478914]
[1761222747711,0.00106575,108970.0,108960.0,0.1478914]
[1761222748411,6.575e-05,108970.0,108960.0,0.1478914]
[1761222748607,0.14874152,108980.0,108960.0,0.86256913]
[1761222748608,0.02442515,108980.0,108960.0,0.86256913]
[1761222748810,0.06072516,108990.0,108980.0,0.1485446]
[1761222749006,0.0048,108990.0,108980.0,0.1485446]
[1761222749208,0.0385,108990.0,108980.0,0.4748646]
[1761222749612,0.00487425,108990.0,108980.0,0.4748646]
[1761222750111,0.00487425,108990.0,108980.0,0.4749046]
[1761222751120,0.00487425,108990.0,108980.0,0.8749046]
[1761222754909,0.00487425,108990.0,108980.0,1.18958233]
[1761222754910,0.00179045,108990.0,108980.0,1.18958233]
[1761222755111,0.0917137,109020.0,109010.0,0.1359093]
[1761222755416,0.01685,109020.0,109010.0,0.1359093]
[1761222755815,0.1085609,109020.0,109010.0,0.1359093]
[1761222756707,0.1254109,109020.0,109010.0,0.1359093]
[1761222757311,0.44108863,109020.0,109010.0,0.1359093]
[1761222757618,0.44308863,109020.0,109010.0,0.1359093]
[1761222758514,0.1284109,109020.0,109010.0,0.1359093]
[1761222759521,0.1254193,109010.0,109000.0,0.1485217]
[1761222759912,0.1254193,109010.0,109000.0,0.0568]
[1761222760213,0.44009703,109010.0,109000.0,0.0568]
[1761222760419,0.1254277,109000.0,108990.0,0.04419]
[1761222760632,0.1254277,109000.0,108980.0,0.1043496]
[1761222760633,0.1254361,108990.0,108980.0,0.0568]
[1761222760915,0.1254446,108980.0,108970.0,0.1359378]
[1761222762019,0.0337,108980.0,108970.0,0.1369378]
[1761222762215,0.1254446,108980.0,108970.0,0.1369378]
[1761222763623,0.1254446,108980.0,108970.0,0.1379378]
[1761222763815,0.0337,108980.0,108970.0,0.1379378]
[1761222764017,0.1254446,108980.0,108970.0,0.1379378]
[1761222768228,0.15801147,108980.0,108970.0,0.1379378]
[1761222769519,0.1254446,108980.0,108970.0,0.1379378]
[1761222769825,0.15801147,108980.0,108970.0,0.04619]
[1761222770030,0.1254446,108980.0,108970.0,0.04619]
[1761222770230,0.15801147,108980.0,108970.0,0.04619]
[1761222770830,0.7985292,108980.0,108970.0,0.04619]
[1761222771428,0.7985292,108980.0,108970.0,0.02309]
[1761222771635,0.7985292,108980.0,108970.0,0.0588]
[1761222771820,0.03256687,108980.0,108970.0,0.150553]
[1761222772133,0.53288024,108990.0,108980.0,0.0568]
[1761222772634,0.84755797,108990.0,108980.0,0.0568]
[1761222772931,0.84751797,108990.0,108980.0,0.0568]
[1761222773435,0.1254446,108980.0,108970.0,0.05737]
[1761222773637,0.47283548,108980.0,108970.0,0.05737]
[1761222773829,0.47283548,108980.0,108970.0,0.149123]
[1761222774030,0.15815775,108980.0,108970.0,0.05737]
[1761222774231,0.15815775,108980.0,108970.0,0.05637]
[1761222774835,0.15815775,108980.0,108970.0,0.05737]
[1761222775936,0.15815775,108980.0,108970.0,0.05837]
[1761222777938,0.16719393,108980.0,108970.0,0.05837]
[1761222778241,0.15815775,108980.0,108970.0,0.05837]
[1761222779438,0.16724616,108980.0,108970.0,0.05837]
[1761222780139,0.48192389,108980.0,108970.0,0.05837]
[1761222780434,0.48192389,108980.0,108970.0,0.150123]
[1761222780633,0.53282652,108990.0,108980.0,0.05748]
[1761222780834,0.48375475,108990.0,108980.0,0.05748]
[1761222781038,0.15814925,108990.0,108980.0,0.15839547]
[1761222781336,0.03271315,108990.0,108980.0,0.1492246]
[1761222781639,0.48374085,109000.0,108990.0,0.1492161]
[1761222783533,0.46689085,109000.0,108990.0,0.1492161]
[1761222783727,0.35831315,109000.0,108990.0,0.1492161]
[1761222783932,0.45004085,109000.0,108990.0,0.1492161]
[1761222784236,0.46689085,109000.0,108990.0,0.1492161]
[1761222784438,0.53277012,109010.0,109000.0,0.01372]
[1761222784641,0.48369835,109010.0,109000.0,0.05748]
[1761222785841,0.48469835,109010.0,109000.0,0.05748]
[1761222786444,0.48469835,109010.0,109000.0,0.1492077]
[1761222786638,0.48469835,109010.0,109000.0,0.05748]
[1761222787344,0.53377012,109010.0,109000.0,0.05748]
[1761222787536,0.48469835,109010.0,109000.0,0.05748]
[1761222788245,0.53377012,109010.0,109000.0,0.05748]
[1761222788742,0.53377012,109010.0,109000.0,0.1492077]
[1761222788743,0.50105697,109010.0,109000.0,0.1492077]
[1761222788948,0.11651178,109010.0,109000.0,0.1492077]
[1761222789339,0.20823108,109010.0,109000.0,0.1492077]
[1761222789538,0.1264193,109010.0,109000.0,0.05748]
[1761222789836,0.19184833,109010.0,109000.0,0.05748]
[1761222790038,0.50652606,109010.0,109000.0,0.05748]
[1761222790242,0.50652606,109010.0,108990.0,0.01372]
[1761222790243,0.1254277,109000.0,108990.0,0.05748]
[1761222790444,0.48923282,109000.0,108990.0,0.05748]
[1761222790740,0.48923282,109000.0,108990.0,0.1492161]
[1761222791044,0.08282739,109000.0,108990.0,0.1492161]
[1761222791339,0.11557977,109000.0,108990.0,0.1492161]
[1761222791543,0.15818008,109000.0,108990.0,0.1492161]
[1761222793543,0.03275238,109000.0,108990.0,0.1492161]
[1761222793849,0.12448008,109000.0,108990.0,0.1492161]
[1761222794146,0.03275238,109000.0,108990.0,0.1492161]
[1761222794343,0.15817748,109010.0,109000.0,0.1492077]
[1761222796349,0.1254251,109010.0,109000.0,0.1492077]
[1761222796550,0.53269107,109020.0,109010.0,0.1491993]
[1761222796747,0.09872977,109020.0,109010.0,0.1491993]
[1761222796947,0.08667977,109030.0,109020.0,0.1491909]
[1761222797152,0.0048,109030.0,109020.0,0.1491909]
[1761222797548,0.0048,109030.0,109020.0,0.1581831]
[1761222798150,0.0078,109030.0,109020.0,0.5581831]
[1761222798746,0.0088,109030.0,109020.0,0.5581831]
[1761222803662,0.15813398,109060.0,109050.0,0.1498656]
[1761222804248,0.15813398,109060.0,109050.0,0.02277]
[1761222804249,0.34558282,109060.0,109050.0,0.02277]
[1761222804557,0.1253857,109050.0,109040.0,0.1498734]
[1761222805753,0.1273857,109050.0,109040.0,0.1498734]
[1761222806358,0.002,109050.0,109040.0,0.1498734]
[1761222806545,0.0936857,109050.0,109040.0,0.1498734]
[1761222806958,0.0976857,109050.0,109040.0,0.1498734]
[1761222807460,0.006,109050.0,109040.0,0.1498734]
[1761222808360,0.1313856,109050.0,109040.0,0.1498734]
[1761222809754,0.0397,109050.0,109040.0,0.1498734]
[1761222809959,0.006,109050.0,109040.0,0.1498734]
[1761222810261,0.1313856,109050.0,109040.0,0.1498734]
[1761222813956,0.006,109050.0,109040.0,0.1498734]
[1761222814261,0.0976856,109050.0,109040.0,0.1498734]
[1761222815061,0.1145356,109050.0,109040.0,0.1498734]
[1761222816766,0.1313856,109050.0,109040.0,0.1498734]
[1761222817663,0.1293856,109050.0,109040.0,0.1498734]
[1761222817864,0.1303856,109050.0,109040.0,0.1498734]
[1761222818066,0.1263856,109050.0,109040.0,0.1498734]
[1761222818671,0.1253856,109050.0,109040.0,0.1498734]
[1761222819750,0.1085356,109050.0,109040.0,0.1498734]
[1761222819963,0.1253856,109050.0,109040.0,0.1498734]
[1761222820164,0.31283444,109050.0,109040.0,0.4745134]
[1761222820960,0.1253856,109050.0,109040.0,0.1498734]
[1761222821463,0.14987532,109050.0,109040.0,0.1498734]
[1761222822567,0.14987532,109050.0,109040.0,0.1498741]
[1761222822766,0.14987532,109050.0,109040.0,0.05818]
[1761222822767,0.33732416,109050.0,109040.0,0.05818]
[1761222822969,0.33732416,109050.0,109030.0,0.4731496]
[1761222822970,0.1253941,109040.0,109030.0,0.4731496]
[1761222823174,0.14992045,109040.0,109030.0,0.1485496]
[1761222823469,0.18257341,109040.0,109030.0,0.1485496]
[1761222825367,0.15804706,109040.0,109030.0,0.1485496]
[1761222826371,0.20702651,109040.0,109030.0,0.05685]
[1761222826563,0.17437355,109040.0,109030.0,0.05685]
[1761222826966,0.17437355,109040.0,109030.0,0.1485525]
[1761222828165,0.20717806,109040.0,109030.0,0.1485525]
[1761222828360,0.17437355,109040.0,109030.0,0.05685]
[1761222828569,0.2071759,109040.0,109030.0,0.1485524]
[1761222829873,0.17437355,109040.0,109030.0,0.1485524]
[1761222832263,0.08267945,109040.0,109030.0,0.1485524]
[1761222832467,0.12449468,109040.0,109030.0,0.1485524]
[1761222832673,0.12449468,109040.0,109030.0,0.29849348]
[1761222833078,0.35711521,109040.0,109030.0,0.29849348]
[1761222833378,0.35711521,109040.0,109030.0,0.1485524]
[1761222833571,0.35711521,109040.0,109030.0,0.29849348]
[1761222834075,0.32431453,109040.0,109030.0,0.29849348]
[1761222835076,0.32431453,109040.0,109030.0,0.1485524]
[1761222835477,0.32431453,109040.0,109030.0,0.29849348]